bitfinex/quotes_SOLUSD_20220128
["timestamp","ask_amount","ask_price","bid_price","bid_amount"]
[1643411988820,0.25,90.587,90.521,22.8678]
[1643411989717,0.25,90.587,90.532,37.8307883]
[1643411989916,0.25,90.587,90.533,22.9979]
[1643411992018,22.6053,90.588,90.533,22.9979]
[1643411993318,0.25,90.587,90.533,22.9979]
[1643411994321,0.25,90.608,90.533,22.9979]
[1643411994922,16.573,90.59,90.533,22.9979]
[1643411995121,23.9437,90.589,90.533,22.9979]
[1643411995323,24.1937,90.589,90.533,22.9979]
[1643411998227,23.9437,90.589,90.533,22.9979]
[1643411999630,0.25,90.588,90.533,22.9979]
[1643412001558,9.66,90.588,90.47,4.59592579]
[1643412001759,9.66,90.588,90.51,6.0]
[1643412001961,9.66,90.588,90.508,109.9]
[1643412002159,9.66,90.588,90.508,115.9]
[1643412002361,9.41,90.588,90.508,6.0]
[1643412002565,9.41,90.588,90.517,6.0]
[1643412002960,23.9437,90.589,90.519,6.0]
[1643412003262,23.9437,90.589,90.52,24.261]
[1643412003860,0.25,90.588,90.52,24.261]
[1643412004061,16.575,90.58,90.52,24.261]
[1643412004260,0.25,90.579,90.52,24.261]
[1643412004459,51.33976179,90.578,90.52,24.261]
[1643412004761,0.25,90.577,90.52,24.261]
[1643412004959,51.33976179,90.576,90.52,24.261]
[1643412005159,0.25,90.577,90.52,24.261]
[1643412005160,51.33976179,90.575,90.52,24.261]
[1643412005359,51.33976179,90.574,90.52,24.261]
[1643412005560,51.33976179,90.573,90.52,24.261]
[1643412005759,51.58976179,90.572,90.52,24.261]
[1643412005963,51.33976179,90.571,90.52,24.261]
[1643412006161,0.25,90.572,90.52,24.261]
[1643412006361,50.9128398,90.571,90.52,24.261]
[1643412006561,0.25,90.572,90.52,24.261]
[1643412006763,50.9128398,90.571,90.52,24.261]
[1643412007163,0.25,90.57,90.52,24.261]
[1643412007567,0.25,90.57,90.53,6.0]
[1643412008366,0.25,90.578,90.53,6.0]
[1643412008571,53.85446583,90.578,90.53,6.0]
[1643412010872,0.25,90.578,90.53,6.0]
[1643412013275,32.181,90.6,90.53,6.0]
[1643412013475,77.05791557,90.599,90.531,22.6583]
[1643412013679,53.59951557,90.598,90.531,22.6583]
[1643412014274,16.573,90.59,90.531,22.6583]
[1643412014773,53.05575603,90.589,90.531,22.6583]
[1643412014975,52.80575603,90.588,90.531,22.6583]
[1643412015376,0.25,90.587,90.531,22.6583]
[1643412015577,53.05575603,90.587,90.531,22.6583]
[1643412016077,23.8171,90.586,90.531,22.6583]
[1643412016279,0.25,90.585,90.531,22.6583]
[1643412016485,52.69369454,90.585,90.531,22.6583]
[1643412016885,52.44369454,90.585,90.531,22.6583]
[1643412017485,52.44369454,90.585,90.532,35.70742044]
[1643412017685,52.44369454,90.585,90.531,22.6583]
[1643412018287,0.25,90.584,90.531,22.6583]
[1643412018990,52.5489713,90.584,90.531,22.6583]
[1643412019387,0.25,90.583,90.531,22.6583]
[1643412020208,16.575,90.58,90.531,22.6583]
[1643412020608,0.25,90.579,90.531,22.6583]
[1643412032020,16.575,90.58,90.531,22.6583]
[1643412033423,0.25,90.579,90.531,22.6583]
[1643412036328,0.25,90.585,90.531,22.6583]
[1643412036527,51.13601911,90.585,90.531,22.6583]
[1643412038228,0.25,90.585,90.531,22.6583]
[1643412038628,16.575,90.58,90.531,22.6583]
[1643412038828,0.25,90.579,90.531,22.6583]
[1643412044535,16.575,90.58,90.531,22.6583]
[1643412045135,16.575,90.58,90.494,31.24764057]
[1643412045333,16.575,90.58,90.495,24.3593]
[1643412045537,16.575,90.58,90.495,45.34006195]
[1643412045934,0.25,90.579,90.496,20.98076195]
[1643412046332,0.25,90.579,90.497,0.25]
[1643412046735,0.25,90.579,90.498,20.98076195]
[1643412047136,0.25,90.579,90.499,0.25]
[1643412047334,16.577,90.57,90.499,0.25]
[1643412047535,22.9935,90.569,90.499,0.25]
[1643412047734,23.2435,90.569,90.495,24.1093]
[1643412048234,23.2435,90.569,90.496,20.97596748]
[1643412048638,23.2435,90.569,90.497,2.95669142]
[1643412048835,23.2435,90.569,90.496,20.97596748]
[1643412050038,23.2435,90.569,90.495,24.1093]
[1643412050638,16.578,90.56,90.495,24.1093]
[1643412050837,0.25,90.559,90.495,24.1093]
[1643412051040,25.0802,90.559,90.47,3.05329984]
[1643412051238,25.0802,90.559,90.44,15.61]
[1643412051239,36.54689142,90.559,90.471,23.1415]
[1643412051439,25.60529142,90.558,90.471,23.1415]
[1643412051651,51.19425784,90.557,90.471,23.1415]
[1643412051938,54.40094926,90.557,90.471,23.1415]
[1643412052141,16.58,90.55,90.471,23.1415]
[1643412052340,53.47219119,90.549,90.471,23.1415]
[1643412052540,53.22219119,90.548,90.471,23.1415]
[1643412052739,53.22219119,90.547,90.471,23.1415]
[1643412052940,0.25,90.547,90.471,23.1415]
[1643412053140,53.47219119,90.547,90.471,23.1415]
[1643412053338,16.582,90.54,90.471,23.1415]
[1643412053741,0.25,90.539,90.471,23.1415]
[1643412055241,16.584,90.53,90.471,23.1415]
[1643412055639,0.25,90.529,90.471,23.1415]
[1643412055940,16.584,90.53,90.472,0.25]
[1643412056143,24.1146,90.548,90.471,23.1415]
[1643412056339,54.00482297,90.547,90.471,23.1415]
[1643412056740,54.00482297,90.547,90.472,0.25]
[1643412056942,54.00482297,90.547,90.471,23.1415]
[1643412057741,0.25,90.546,90.471,23.1415]
[1643412057940,54.25482297,90.546,90.471,23.1415]
[1643412058143,54.00482297,90.546,90.471,23.1415]
[1643412058343,0.25,90.545,90.472,0.25]
[1643412058543,16.582,90.54,90.472,0.25]
[1643412058744,0.25,90.539,90.471,23.1415]
[1643412059845,0.25,90.547,90.471,23.1415]
[1643412060045,16.584,90.53,90.471,23.1415]
[1643412060249,23.6328,90.529,90.471,23.1415]
[1643412061885,16.581,90.55,90.472,0.25]
[1643412062080,15.61,90.56,90.473,109.9]
[1643412062380,15.61,90.56,90.474,0.25]
[1643412063178,0.25,90.559,90.474,0.25]
[1643412063377,53.00434076,90.559,90.474,0.25]
[1643412063578,77.35734076,90.559,90.474,0.25]
[1643412063778,52.75434076,90.558,90.474,0.25]
[1643412064178,52.75434076,90.559,90.483,6.30875936]
[1643412064379,51.62445404,90.599,90.485,109.9]
[1643412064581,51.62445404,90.608,90.495,6.0]
[1643412064881,51.62445404,90.608,90.497,109.9]
[1643412065079,51.62445404,90.608,90.507,6.0]
[1643412065279,0.25,90.607,90.508,24.1524]
[1643412065578,51.87445404,90.607,90.508,24.1524]
[1643412065981,16.571,90.6,90.508,24.1524]
[1643412066184,51.62445404,90.599,90.508,24.1524]
[1643412066378,76.4720153,90.598,90.508,24.1524]
[1643412066581,52.0355153,90.597,90.509,109.9]
[1643412066782,52.2855153,90.597,90.51,0.25]
[1643412067981,52.2855153,90.597,90.509,0.25]
[1643412068885,52.2855153,90.597,90.509,110.15]
[1643412069285,16.573,90.59,90.508,23.9024]
[1643412069485,53.44068034,90.589,90.518,6.0]
[1643412069689,53.44068034,90.589,90.508,23.9024]
[1643412069690,53.44068034,90.588,90.508,23.9024]
[1643412069892,53.69068034,90.587,90.509,0.25]
[1643412070087,53.44068034,90.586,90.508,23.9024]
[1643412070291,0.25,90.585,90.509,0.25]
[1643412070485,16.575,90.58,90.509,0.25]
[1643412070686,50.61616016,90.584,90.509,0.25]
[1643412070890,0.25,90.579,90.509,0.25]
[1643412071886,50.86616016,90.579,90.509,0.25]
[1643412072087,50.86616016,90.579,90.518,6.0]
[1643412072489,50.86616016,90.579,90.519,23.0615]
[1643412074589,16.576,90.57,90.519,23.0615]
[1643412074789,52.12226625,90.569,90.519,23.0615]
[1643412075099,23.0461,90.568,90.47,32.185]
[1643412075391,0.25,90.567,90.487,22.6866]
[1643412075589,16.579,90.56,90.487,22.6866]
[1643412075789,0.25,90.559,90.487,22.6866]
[1643412075989,51.87226625,90.558,90.487,22.6866]
[1643412076189,0.25,90.559,90.487,22.6866]
[1643412076190,51.87226625,90.557,90.487,22.6866]
[1643412076391,50.80810697,90.556,90.444,3.05329984]
[1643412076593,50.80810697,90.556,90.436,3.06686394]
[1643412076594,16.581,90.55,90.436,3.06686394]
[1643412076794,15.61,90.54,90.424,3.05329984]
[1643412076993,96.60480697,90.539,90.437,20.94662476]
[1643412077190,50.80810697,90.538,90.437,20.94662476]
[1643412077490,0.25,90.537,90.437,20.94662476]
[1643412077696,54.01479839,90.537,90.437,20.94662476]
[1643412078093,2.95669142,90.536,90.437,20.94662476]
[1643412078293,0.25,90.535,90.437,20.94662476]
[1643412078495,54.07621367,90.535,90.437,20.94662476]
[1643412078695,57.03290509,90.535,90.437,20.94662476]
[1643412079095,16.587,90.52,90.437,20.94662476]
[1643412079296,53.82621367,90.519,90.437,20.94662476]
[1643412079697,53.82621367,90.519,90.436,49.2986]
[1643412080497,24.527,90.518,90.436,49.2986]
[1643412080700,75.58594573,90.518,90.436,49.2986]
[1643412080898,51.05894573,90.517,90.436,49.2986]
[1643412081099,24.527,90.518,90.436,49.2986]
[1643412081298,51.05894573,90.517,90.437,0.25]
[1643412081499,51.05894573,90.516,90.437,0.25]
[1643412081700,16.587,90.51,90.436,49.2986]
[1643412082099,0.25,90.509,90.436,49.2986]
[1643412086611,0.25,90.509,90.437,0.25]
[1643412087409,0.25,90.509,90.436,49.2986]
[1643412088608,0.25,90.509,90.437,110.15]
[1643412088812,0.25,90.529,90.437,110.15]
[1643412089012,54.00088794,90.529,90.437,0.25]
[1643412089610,16.586,90.52,90.437,0.25]
[1643412090011,22.8512,90.519,90.437,0.25]
[1643412090210,0.25,90.519,90.437,110.15]
[1643412090411,0.25,90.519,90.437,0.25]
[1643412091911,24.3926,90.519,90.437,0.25]
[1643412092111,24.3926,90.519,90.436,48.5486]
[1643412092312,24.3926,90.519,90.437,0.25]
[1643412095334,24.1426,90.519,90.437,0.25]
[1643412096935,0.25,90.518,90.437,0.25]
[1643412101344,0.25,90.518,90.444,1.52877415]
[1643412102144,0.25,90.518,90.442,1.52877415]
[1643412102343,0.25,90.518,90.443,0.25]
[1643412102543,24.1426,90.519,90.443,0.25]
[1643412102742,24.1426,90.519,90.443,1.77877415]
[1643412103145,24.1426,90.519,90.445,1.52877415]
[1643412103345,24.1426,90.519,90.446,0.25]
[1643412103845,0.25,90.518,90.446,0.25]
[1643412104245,0.25,90.518,90.446,1.77877415]
[1643412104447,0.25,90.518,90.46,1.52877415]
[1643412104744,0.25,90.518,90.437,110.15]
[1643412104745,0.25,90.518,90.463,1.52877415]
[1643412104948,0.25,90.518,90.466,1.52877415]
[1643412105145,24.952,90.538,90.467,0.25]
[1643412105344,24.952,90.538,90.474,1.52877415]
[1643412105545,24.952,90.538,90.475,1.52877415]
[1643412105748,24.952,90.538,90.476,1.77877415]
[1643412105946,24.952,90.538,90.476,1.52877415]
[1643412106150,24.952,90.538,90.477,0.25]
[1643412106345,78.94965858,90.538,90.477,0.25]
[1643412106544,53.99765858,90.537,90.477,1.77877415]
[1643412107149,53.99765858,90.537,90.477,0.25]
[1643412107346,53.99765858,90.537,90.473,0.25]
[1643412108047,0.25,90.536,90.473,0.25]
[1643412108247,52.76813438,90.536,90.473,0.25]
[1643412108447,52.51813438,90.536,90.473,0.25]
[1643412108651,0.25,90.535,90.473,0.25]
[1643412108851,52.76813438,90.535,90.473,0.25]
[1643412109053,52.76813438,90.535,90.471,1.52877415]
[1643412109251,52.76813438,90.535,90.472,0.25]
[1643412109852,52.51813438,90.535,90.472,10.68]
[1643412110154,1.49108502,90.579,90.482,6.0]
[1643412110354,52.8695273,90.578,90.487,1.52877415]
[1643412110553,2.97341427,90.615,90.483,0.25]
[1643412110554,52.8695273,90.577,90.493,1.52877415]
[1643412110756,52.8695273,90.576,90.494,40.44602]
[1643412110961,52.8695273,90.575,90.494,40.44602]
[1643412111157,52.8695273,90.581,90.495,111.42877415]
[1643412111357,0.25,90.574,90.496,0.25]
[1643412112357,52.34904196,90.576,90.496,0.25]
[1643412113359,52.34904196,90.576,90.505,6.0]
[1643412113763,52.34904196,90.576,90.506,0.25]
[1643412115061,52.34904196,90.576,90.506,110.15]
[1643412115662,52.34904196,90.576,90.506,0.25]
[1643412115862,52.34904196,90.576,90.505,0.25]
[1643412116063,52.34904196,90.576,90.494,38.66724585]
[1643412116265,24.7168,90.575,90.494,38.66724585]
[1643412116463,78.09252595,90.575,90.494,38.66724585]
[1643412116663,53.62572595,90.574,90.494,38.66724585]
[1643412117667,53.62572595,90.574,90.495,0.25]
[1643412118069,16.577,90.57,90.494,38.66724585]
[1643412118870,69.29711863,90.57,90.494,38.66724585]
[1643412119066,52.72011863,90.569,90.494,38.66724585]
[1643412119267,52.72011863,90.569,90.495,23.4017]
[1643412119468,16.579,90.56,90.495,23.1517]
[1643412119869,0.25,90.559,90.495,23.1517]
[1643412120069,52.72011863,90.558,90.495,23.1517]
[1643412120273,52.97011863,90.557,90.495,23.1517]
[1643412120569,52.44149368,90.557,90.495,23.1517]
[1643412121503,0.25,90.557,90.495,23.1517]
[1643412121895,0.25,90.559,90.495,23.1517]
[1643412122095,16.579,90.56,90.495,23.1517]
[1643412122301,53.92947439,90.559,90.496,0.25]
[1643412122497,16.575,90.58,90.505,6.0]
[1643412122702,53.92947439,90.579,90.506,22.9394]
[1643412122904,63.54947439,90.579,90.483,24.5357]
[1643412123097,53.92947439,90.578,90.484,22.9394]
[1643412123297,56.88616581,90.578,90.484,23.1894]
[1643412123498,2.95669142,90.577,90.484,23.1894]
[1643412123696,56.88616581,90.577,90.484,23.1894]
[1643412123896,0.25,90.576,90.485,37.07492602]
[1643412124099,16.579,90.56,90.485,37.07492602]
[1643412124298,0.25,90.559,90.485,37.07492602]
[1643412124496,52.51566476,90.559,90.484,23.1894]
[1643412124897,23.6557,90.558,90.484,23.1894]
[1643412125098,52.26566476,90.557,90.484,23.1894]
[1643412125306,0.25,90.557,90.484,23.1894]
[1643412125498,0.25,90.557,90.485,46.66035546]
[1643412126098,0.25,90.557,90.484,23.1894]
[1643412126302,16.58,90.55,90.484,23.1894]
[1643412126799,0.25,90.549,90.484,23.1894]
[1643412127200,0.25,90.549,90.485,36.47662038]
[1643412127401,0.25,90.549,90.486,0.25]
[1643412127601,0.25,90.549,90.484,23.1894]
[1643412129602,0.25,90.549,90.485,36.14510147]
[1643412129802,0.25,90.549,90.486,0.25]
[1643412140017,16.58,90.55,90.486,0.25]
[1643412140820,23.6557,90.558,90.486,0.25]
[1643412141021,53.53897424,90.557,90.487,1.52877415]
[1643412141217,53.53897424,90.557,90.488,1.52877415]
[1643412141419,53.53897424,90.557,90.488,1.77877415]
[1643412141717,53.53897424,90.557,90.488,1.52877415]
[1643412141918,53.53897424,90.557,90.489,0.25]
[1643412142320,25.48428502,90.588,90.494,1.52877415]
[1643412142519,23.7951,90.587,90.499,1.52877415]
[1643412142719,76.69719068,90.587,90.504,1.52877415]
[1643412142921,52.90209068,90.586,90.505,1.52877415]
[1643412143218,52.90209068,90.586,90.5,7.77877415]
[1643412143418,0.25,90.585,90.506,0.25]
[1643412143619,0.25,90.585,90.504,1.52877415]
[1643412143822,53.15209068,90.586,90.506,0.25]
[1643412144021,52.90209068,90.586,90.506,0.25]
[1643412144219,52.90209068,90.586,90.507,1.52877415]
[1643412144621,52.90209068,90.586,90.508,0.25]
[1643412144918,52.90209068,90.586,90.508,23.0965]
[1643412145420,0.25,90.585,90.508,23.0965]
[1643412145918,0.25,90.586,90.508,23.0965]
[1643412147520,16.575,90.58,90.508,23.0965]
[1643412147921,0.25,90.579,90.508,23.0965]
[1643412149622,0.25,90.579,90.508,22.8465]
[1643412150222,16.576,90.57,90.508,22.8465]
[1643412150423,16.576,90.57,90.509,0.25]
[1643412150623,24.6478,90.569,90.509,0.25]
[1643412153026,24.6478,90.569,90.508,22.8465]
[1643412153628,78.50531527,90.569,90.508,22.8465]
[1643412153827,16.578,90.56,90.508,22.8465]
[1643412154227,0.25,90.559,90.484,1.52877415]
[1643412154527,0.25,90.559,90.485,24.0007]
[1643412154930,0.25,90.559,90.486,0.25]
[1643412157231,16.58,90.55,90.486,0.25]
[1643412157433,24.4605,90.549,90.486,0.25]
[1643412157639,24.7105,90.549,90.486,0.25]
[1643412160633,24.4605,90.549,90.486,0.25]
[1643412161832,0.25,90.548,90.486,0.25]
[1643412168535,16.582,90.54,90.486,0.25]
[1643412168938,0.25,90.539,90.486,0.25]
[1643412169539,24.4149,90.539,90.486,0.25]
[1643412176960,24.4149,90.539,90.485,24.0007]
[1643412183691,0.25,90.539,90.485,24.0007]
[1643412184290,24.5445,90.559,90.485,24.0007]
[1643412184490,75.47567538,90.559,90.485,24.0007]
[1643412184694,50.93117538,90.558,90.485,24.0007]
[1643412184897,0.25,90.557,90.485,24.0007]
[1643412185094,51.18117538,90.557,90.485,24.0007]
[1643412192633,50.93117538,90.557,90.485,24.0007]
[1643412192832,24.2945,90.559,90.485,24.0007]
[1643412192833,54.1978275,90.556,90.486,109.9]
[1643412193032,24.2945,90.559,90.486,109.9]
[1643412193235,78.4923275,90.559,90.487,0.25]
[1643412193537,54.1978275,90.558,90.487,0.25]
[1643412194134,0.25,90.557,90.486,1.52877415]
[1643412194434,53.73640989,90.558,90.485,25.52947415]
[1643412195035,53.73640989,90.558,90.485,24.0007]
[1643412195236,0.25,90.558,90.485,25.52947415]
[1643412195436,53.73640989,90.558,90.486,1.52877415]
[1643412195635,53.73640989,90.558,90.485,24.0007]
[1643412196336,53.73640989,90.558,90.486,1.77877415]
[1643412196537,0.25,90.558,90.486,1.77877415]
[1643412196737,53.82118475,90.558,90.486,1.52877415]
[1643412196940,53.82118475,90.558,90.485,25.52947415]
[1643412197136,53.82118475,90.558,90.485,24.0007]
[1643412197337,53.82118475,90.558,90.485,25.52947415]
[1643412197738,0.25,90.558,90.485,25.52947415]
[1643412197938,53.82118475,90.558,90.485,25.52947415]
[1643412198841,0.25,90.558,90.485,24.0007]
[1643412199043,53.9347252,90.558,90.485,24.0007]
[1643412199242,53.9347252,90.558,90.487,1.52877415]
[1643412199744,53.9347252,90.558,90.485,25.52947415]
[1643412199943,24.2945,90.559,90.485,24.0007]
[1643412200270,0.25,90.558,90.485,24.0007]
[1643412200442,52.4670973,90.558,90.485,24.0007]
[1643412201246,0.25,90.558,90.485,24.0007]
[1643412201444,52.4670973,90.558,90.485,24.0007]
[1643412202644,53.46165924,90.558,90.485,24.0007]
[1643412203649,0.25,90.558,90.485,24.0007]
[1643412203852,53.46165924,90.558,90.485,24.0007]
[1643412204951,0.25,90.558,90.485,24.0007]
[1643412205152,53.55602917,90.558,90.485,24.0007]
[1643412206150,53.30602917,90.557,90.485,24.0007]
[1643412206355,52.29022788,90.556,90.485,24.0007]
[1643412206566,0.25,90.558,90.485,24.0007]
[1643412206753,52.29022788,90.558,90.485,24.0007]
[1643412207982,16.58,90.55,90.485,24.0007]
[1643412208486,24.576,90.549,90.485,24.0007]
[1643412208682,51.74921546,90.548,90.485,24.0007]
[1643412208887,51.74921546,90.547,90.485,24.0007]
[1643412209084,24.576,90.549,90.485,24.0007]
[1643412209284,76.32521546,90.549,90.485,24.0007]
[1643412209486,51.74921546,90.548,90.485,24.0007]
[1643412209686,24.576,90.549,90.485,24.0007]
[1643412210089,76.32521546,90.549,90.485,24.0007]
[1643412210287,51.74921546,90.548,90.485,24.0007]
[1643412210687,0.25,90.547,90.485,24.0007]
[1643412211689,0.25,90.548,90.485,24.0007]
[1643412211890,50.807161,90.548,90.485,24.0007]
[1643412212090,0.25,90.548,90.485,24.0007]
[1643412212291,50.807161,90.548,90.485,24.0007]
[1643412213093,0.25,90.548,90.485,24.0007]
[1643412213491,50.83883032,90.548,90.485,24.0007]
[1643412214296,0.25,90.548,90.485,24.0007]
[1643412214695,53.7237478,90.548,90.485,24.0007]
[1643412215496,0.25,90.548,90.485,24.0007]
[1643412215895,53.7237478,90.548,90.485,24.0007]
[1643412216898,0.25,90.548,90.485,24.0007]
[1643412217098,53.43692478,90.548,90.485,24.0007]
[1643412218099,0.25,90.548,90.485,24.0007]
[1643412218299,51.39512119,90.548,90.485,24.0007]
[1643412219305,0.25,90.548,90.485,24.0007]
[1643412219506,51.39512119,90.548,90.485,24.0007]
[1643412219900,51.14512119,90.548,90.485,24.0007]
[1643412220101,51.14512119,90.548,90.486,0.25]
[1643412220303,24.326,90.549,90.485,24.0007]
[1643412220702,76.09917943,90.549,90.485,24.0007]
[1643412220900,51.77317943,90.548,90.485,24.0007]
[1643412221303,0.25,90.547,90.485,24.0007]
[1643412221704,0.25,90.548,90.485,24.0007]
[1643412221905,52.02317943,90.548,90.485,24.0007]
[1643412222902,0.25,90.548,90.485,24.0007]
[1643412223103,50.93154165,90.548,90.485,24.0007]
[1643412224106,0.25,90.548,90.485,24.0007]
[1643412224509,53.55518071,90.548,90.485,24.0007]
[1643412225107,0.25,90.548,90.485,24.0007]
[1643412225407,53.55518071,90.548,90.485,24.0007]
[1643412226007,2.97341427,90.595,90.496,65.78]
[1643412226209,55.2,90.698,90.541,0.31340978]
[1643412226210,2.97341427,90.622,90.541,0.31340978]
[1643412226408,2.97341427,90.665,90.556,0.30549634]
[1643412226610,51.98450783,90.664,90.571,109.9]
[1643412226807,51.98450783,90.664,90.581,0.31990718]
[1643412227011,51.98450783,90.663,90.581,0.31990718]
[1643412227207,51.98450783,90.662,90.581,0.31990718]
[1643412227408,51.98450783,90.661,90.582,6.0]
[1643412227610,51.98450783,90.66,90.583,22.6772]
[1643412227908,51.98450783,90.669,90.584,0.25]
[1643412228507,51.98450783,90.669,90.584,110.15]
[1643412228508,16.56,90.66,90.584,110.15]
[1643412228714,53.88817508,90.659,90.584,110.15]
[1643412228907,53.88817508,90.658,90.584,110.15]
[1643412229110,53.88817508,90.657,90.584,110.15]
[1643412229309,16.56,90.66,90.584,110.15]
[1643412229310,53.88817508,90.656,90.584,110.15]
[1643412229512,53.88817508,90.655,90.584,110.15]
[1643412229911,0.25,90.654,90.584,110.15]
[1643412230112,53.88817508,90.653,90.584,110.15]
[1643412230320,0.25,90.652,90.584,110.15]
[1643412230511,0.25,90.654,90.584,110.15]
[1643412230712,54.05780127,90.653,90.584,110.15]
[1643412231112,0.25,90.652,90.584,110.15]
[1643412231615,54.05780127,90.651,90.584,110.15]
[1643412231813,54.30780127,90.65,90.584,110.15]
[1643412232413,0.25,90.65,90.584,110.15]
[1643412232612,0.25,90.65,90.585,2.95669142]
[1643412233113,16.557,90.68,90.595,6.0]
[1643412233319,50.67881443,90.679,90.6,15.61]
[1643412233514,50.67881443,90.678,90.601,44.7455873]
[1643412233716,50.67881443,90.677,90.601,47.95227872]
[1643412233915,50.67881443,90.676,90.601,47.95227872]
[1643412234140,50.67881443,90.675,90.602,2.95669142]
[1643412234340,16.553,90.7,90.6,15.61]
[1643412234341,53.85787054,90.674,90.6,15.61]
[1643412234548,53.85787054,90.673,90.553,23.8122]
[1643412234839,57.06456196,90.673,90.553,23.8122]
[1643412235039,74.46104318,90.673,90.553,23.8122]
[1643412235245,56.81456196,90.672,90.553,23.8122]
[1643412235441,24.788,90.671,90.554,45.26720241]
[1643412235641,81.85256196,90.671,90.554,45.26720241]
[1643412235841,56.81456196,90.67,90.555,0.25]
[1643412236041,73.37356196,90.67,90.555,0.25]
[1643412236240,57.06456196,90.669,90.555,0.25]
[1643412236641,27.27369142,90.668,90.555,0.25]
[1643412236841,0.25,90.667,90.555,0.25]
[1643412237042,52.90168639,90.667,90.562,109.9]
[1643412237245,52.90168639,90.666,90.565,65.78]
[1643412237443,52.90168639,90.665,90.572,6.0]
[1643412237642,52.90168639,90.664,90.575,6.0]
[1643412237844,52.90168639,90.663,90.576,0.25]
[1643412238046,52.90168639,90.662,90.58,15.61]
[1643412238241,52.90168639,90.67,90.581,0.25]
[1643412238442,50.67824892,90.67,90.581,0.25]
[1643412239042,0.25,90.669,90.581,0.25]
[1643412239242,50.92824892,90.669,90.581,0.25]
[1643412239442,50.92824892,90.669,90.582,2.95669142]
[1643412239643,0.25,90.669,90.584,65.78]
[1643412239845,0.25,90.696,90.592,6.0]
[1643412240043,74.33634892,90.696,90.594,6.0]
[1643412240246,50.67824892,90.695,90.595,0.25]
[1643412240442,50.67824892,90.695,90.595,110.15]
[1643412240643,0.25,90.694,90.595,113.10669142]
[1643412240844,50.96821463,90.694,90.596,2.95669142]
[1643412241343,50.71821463,90.694,90.597,0.25]
[1643412241542,50.71821463,90.693,90.597,0.25]
[1643412241843,50.71821463,90.695,90.597,3.20669142]
[1643412242043,16.555,90.69,90.597,3.20669142]
[1643412242646,0.25,90.689,90.597,3.20669142]
[1643412242846,52.03324533,90.689,90.597,3.20669142]
[1643412243446,51.78324533,90.689,90.61,15.61]
[1643412243648,77.2299,90.819,90.61,15.61]
[1643412243649,18.58341427,90.76,90.63,0.30030456]
[1643412243849,15.61,90.76,90.631,109.9]
[1643412244048,67.39324533,90.76,90.632,24.9305]
[1643412244247,51.78324533,90.759,90.632,25.1805]
[1643412244448,51.78324533,90.759,90.633,109.9]
[1643412244651,51.78324533,90.759,90.633,2.95669142]
[1643412244652,16.548,90.73,90.633,2.95669142]
[1643412244951,64.49743351,90.729,90.611,24.6394]
[1643412245147,54.03024351,90.728,90.611,24.6394]
[1643412245552,54.03024351,90.728,90.612,109.9]
[1643412245748,103.58614351,90.728,90.613,33.02051599]
[1643412245947,54.03024351,90.727,90.613,33.02051599]
[1643412246149,54.03024351,90.727,90.614,0.25]
[1643412246349,54.03024351,90.727,90.614,24.3769]
[1643412246548,2.95669142,90.726,90.614,24.3769]
[1643412246747,55.95063575,90.726,90.614,24.3769]
[1643412246947,16.554,90.71,90.614,24.3769]
[1643412247146,22.5167,90.709,90.614,24.3769]
[1643412247347,75.51064433,90.709,90.614,24.3769]
[1643412247549,52.74394433,90.708,90.614,24.3769]